bitfinex/quotes_BTCUSD_20250320
["timestamp","ask_amount","ask_price","bid_price","bid_amount"]
[1742482688924,0.13584,86226.0,86224.0,0.231953]
[1742482689125,0.13866684,86226.0,86224.0,0.231953]
[1742482689751,0.13584,86226.0,86224.0,0.231953]
[1742482690844,0.01819478,86232.0,86231.0,0.231935]
[1742482691067,0.15403478,86232.0,86231.0,0.231935]
[1742482691264,0.15403478,86232.0,86229.0,0.231938]
[1742482691464,0.011596,86231.0,86224.0,0.234953]
[1742482691669,0.39756378,86232.0,86228.0,0.231942]
[1742482691866,0.15403478,86232.0,86229.0,0.231939]
[1742482692241,0.15403478,86232.0,86231.0,0.002]
[1742482692242,0.01819478,86232.0,86231.0,0.002]
[1742482692445,0.011593,86257.0,86253.0,0.231875]
[1742482692648,0.011594,86251.0,86231.0,0.011596]
[1742482692857,0.243482,86249.0,86246.0,0.231894]
[1742482693081,0.231889,86249.0,86244.0,0.231898]
[1742482693299,0.243483,86249.0,86245.0,0.231895]
[1742482693478,0.00283191,86248.0,86245.0,0.231895]
[1742482693634,0.00283191,86248.0,86245.0,0.23193757]
[1742482693836,0.00283191,86248.0,86245.0,4.157e-05]
[1742482694035,0.011594,86246.0,86245.0,4.157e-05]
[1742482694266,0.00283191,86248.0,86246.0,0.231894]
[1742482694461,0.01154564,86249.0,86246.0,0.231894]
[1742482694820,0.001,86248.0,86246.0,0.231893]
[1742482695025,0.00383191,86248.0,86246.0,0.231893]
[1742482695225,0.001,86248.0,86247.0,0.011594]
[1742482696013,0.13584,86254.0,86253.0,0.243468]
[1742482696248,0.01819183,86264.0,86262.0,0.231851]
[1742482696450,0.01819183,86264.0,86263.0,0.231849]
[1742482696650,0.00273904,86263.0,86262.0,0.231851]
[1742482696826,0.01818888,86264.0,86263.0,0.231849]
[1742482697202,0.15402888,86264.0,86263.0,0.243441]
[1742482697607,0.01818888,86264.0,86263.0,0.243441]
[1742482697809,0.01818888,86264.0,86263.0,0.231849]
[1742482698158,0.01818888,86264.0,86263.0,0.246441]
[1742482698719,0.01818888,86264.0,86263.0,0.249441]
[1742482698946,0.25003488,86264.0,86263.0,0.006]
[1742482699130,0.03251992,86264.0,86263.0,0.003]
[1742482699334,0.40831992,86264.0,86263.0,0.003]
[1742482699983,0.011592,86261.0,86260.0,0.0003386]
[1742482700136,0.24624005,86261.0,86260.0,0.0003386]
[1742482700540,0.00279405,86261.0,86260.0,0.0003386]
[1742482700745,0.09398888,86264.0,86260.0,0.0003386]
[1742482700946,0.011592,86261.0,86260.0,0.0003386]
[1742482701384,0.01438605,86261.0,86260.0,0.0003386]
[1742482701594,0.24624005,86261.0,86260.0,0.0003386]
[1742482702700,0.24624005,86261.0,86260.0,0.0013386]
[1742482703314,0.24624005,86261.0,86260.0,0.0033386]
[1742482703551,0.00279405,86261.0,86260.0,0.0033386]
[1742482703721,0.09398888,86264.0,86260.0,0.0033386]
[1742482703722,0.01818888,86264.0,86260.0,0.0033386]
[1742482703947,0.00279405,86263.0,86261.0,0.231854]
[1742482704147,0.00279405,86263.0,86262.0,0.231851]
[1742482704352,0.1358,86263.0,86262.0,0.231851]
[1742482704559,0.1358,86263.0,86261.0,0.231854]
[1742482704560,0.00277633,86263.0,86261.0,0.231854]
[1742482704713,0.231838,86267.0,86264.0,0.231845]
[1742482704908,0.13857633,86266.0,86264.0,0.231845]
[1742482705475,0.37041833,86266.0,86261.0,0.001]
[1742482705668,0.13857633,86266.0,86264.0,0.231843]
[1742482706218,0.231843,86265.0,86260.0,0.0013386]
[1742482706415,0.243446,86261.0,86260.0,0.0013386]
[1742482706619,0.543446,86261.0,86260.0,0.0013386]
[1742482706824,0.543446,86261.0,86260.0,0.0003386]
[1742482706825,0.54622897,86261.0,86260.0,0.0003386]
[1742482707430,0.56441976,86261.0,86260.0,0.0003386]
[1742482708043,0.56441976,86261.0,86260.0,0.0033386]
[1742482708976,0.57896061,86261.0,86260.0,0.0033386]
[1742482709528,0.65896061,86261.0,86260.0,6e-07]
[1742482709759,0.69747498,86261.0,86260.0,6e-07]
[1742482709915,0.69247498,86261.0,86260.0,6e-07]
[1742482710290,0.82827498,86261.0,86260.0,6e-07]
[1742482710677,0.69247498,86261.0,86260.0,6e-07]
[1742482710812,0.80627498,86261.0,86260.0,6e-07]
[1742482711013,0.543463,86255.0,86254.0,0.0003388]
[1742482711399,0.54619361,86255.0,86254.0,0.0003388]
[1742482711811,0.30273061,86255.0,86254.0,0.0003388]
[1742482712006,0.13853061,86255.0,86254.0,0.2322118]
[1742482712628,0.1358,86255.0,86254.0,0.2322118]
[1742482712860,0.002,86255.0,86254.0,0.2438048]
[1742482713061,0.002,86255.0,86254.0,0.3230048]
[1742482713819,0.004,86255.0,86254.0,0.49217983]
[1742482713971,0.02218891,86255.0,86254.0,0.49217983]
[1742482714151,0.01818891,86255.0,86254.0,0.49217983]
[1742482714520,0.01818891,86255.0,86254.0,0.50388889]
[1742482714675,0.01818891,86255.0,86254.0,0.50688889]
[1742482714877,0.01818891,86255.0,86254.0,0.53002622]
[1742482715088,0.01818891,86255.0,86254.0,0.52702622]
[1742482715293,0.01818891,86255.0,86254.0,0.53102622]
[1742482715494,0.01818891,86255.0,86254.0,0.39974213]
[1742482715879,0.01818891,86255.0,86254.0,0.27094213]
[1742482716283,0.01818891,86255.0,86254.0,0.2438048]
[1742482716483,0.01818891,86255.0,86254.0,0.2478048]
[1742482716679,0.0209686,86255.0,86254.0,0.0043388]
[1742482716971,0.2644316,86255.0,86254.0,0.0043388]
[1742482717100,0.2644316,86255.0,86254.0,0.0003388]
[1742482717297,0.03273085,86255.0,86254.0,0.0063388]
[1742482717496,0.03273085,86255.0,86254.0,0.2382118]
[1742482717707,0.03273085,86255.0,86254.0,0.0113388]
[1742482717916,0.03273085,86255.0,86254.0,0.0053388]
[1742482718318,0.03273085,86255.0,86254.0,0.2382118]
[1742482718751,0.03273085,86255.0,86254.0,0.2332118]
[1742482718953,0.0209686,86255.0,86254.0,0.2342118]
[1742482719414,0.0209686,86255.0,86254.0,0.2332118]
[1742482719651,0.0209686,86255.0,86254.0,0.2342118]
[1742482720083,0.0209686,86255.0,86254.0,0.2332118]
[1742482720417,0.0209686,86255.0,86254.0,0.2342118]
[1742482720820,0.0209686,86255.0,86254.0,0.0003388]
[1742482721242,0.0209686,86255.0,86254.0,0.0053388]
[1742482721455,0.0209686,86255.0,86254.0,0.0023388]
[1742482721651,0.0209686,86255.0,86254.0,0.2342118]
[1742482721934,0.0209686,86255.0,86254.0,0.0043388]
[1742482722228,0.62824269,86255.0,86254.0,0.0043388]
[1742482722636,0.54624269,86255.0,86254.0,0.0043388]
[1742482723409,0.54624269,86255.0,86254.0,0.0023388]
[1742482723937,0.54624269,86255.0,86254.0,0.0003388]
[1742482724113,0.54624269,86255.0,86254.0,0.0013388]
[1742482724334,0.54624269,86255.0,86254.0,0.0023388]
[1742482724848,0.24624269,86255.0,86254.0,0.0013388]
[1742482725142,0.24624269,86255.0,86254.0,0.0023388]
[1742482725360,0.2644347,86255.0,86254.0,0.0023388]
[1742482725565,0.0209717,86255.0,86254.0,0.0023388]
[1742482725881,0.1567717,86255.0,86254.0,0.2458048]
[1742482726330,0.0209717,86255.0,86254.0,0.2458048]
[1742482726544,0.01819201,86255.0,86254.0,0.2458048]
[1742482726707,0.02087093,86255.0,86254.0,0.2458048]
[1742482726908,0.02087093,86255.0,86254.0,0.2438048]
[1742482727373,0.02087093,86255.0,86254.0,0.2508048]
[1742482727767,0.02087093,86255.0,86254.0,0.2478048]
[1742482728069,0.01819201,86255.0,86254.0,0.27149052]
[1742482728317,0.01819201,86255.0,86254.0,0.27549052]
[1742482728502,0.01819201,86255.0,86254.0,0.39506555]
[1742482731155,1e-08,86255.0,86254.0,0.39506555]
[1742482731355,1e-08,86255.0,86254.0,0.47426555]
[1742482731732,0.0001694,86260.0,86259.0,0.243451]
[1742482731946,0.0001694,86260.0,86259.0,0.36302603]
[1742482732350,0.0001694,86260.0,86259.0,0.243451]
[1742482733758,0.0001694,86260.0,86259.0,0.254451]
[1742482734687,8e-07,86264.0,86263.0,0.243441]
[1742482734900,8e-07,86264.0,86263.0,0.74291603]
[1742482735117,8e-07,86264.0,86263.0,0.75745688]
[1742482737006,8e-07,86264.0,86263.0,0.76245688]
[1742482737587,8e-07,86264.0,86263.0,0.75745688]
[1742482737794,8e-07,86264.0,86263.0,0.76345688]
[1742482738307,8e-07,86264.0,86263.0,0.76945688]
[1742482738783,8e-07,86264.0,86263.0,0.75491603]
[1742482744696,8e-07,86264.0,86263.0,0.74891603]
[1742482745095,8e-07,86264.0,86263.0,0.75491603]
[1742482745494,8e-07,86264.0,86263.0,0.243849]
[1742482745653,8e-07,86264.0,86263.0,0.255441]
[1742482745853,8e-07,86264.0,86263.0,0.2557798]
[1742482746102,8e-07,86264.0,86263.0,0.37535483]
[1742482746262,8e-07,86264.0,86263.0,0.36935483]
[1742482746460,8e-07,86264.0,86263.0,0.2497798]
[1742482746657,8e-07,86264.0,86263.0,0.2441878]
[1742482746857,0.2318468,86264.0,86263.0,0.0123388]
[1742482747073,8e-07,86264.0,86263.0,0.2321878]
[1742482747390,8e-07,86264.0,86263.0,0.2441878]
[1742482747786,8e-07,86264.0,86263.0,0.2321878]
[1742482747981,0.0027329,86264.0,86263.0,0.2351878]
[1742482748183,8e-07,86264.0,86263.0,0.2391878]
[1742482748385,8e-07,86264.0,86263.0,0.2507798]
[1742482748717,8e-07,86264.0,86263.0,0.37035483]
[1742482749357,8e-07,86264.0,86263.0,0.36735483]
[1742482749704,8e-07,86264.0,86263.0,0.37335483]
[1742482750530,8e-07,86264.0,86263.0,0.36935483]
[1742482750973,8e-07,86264.0,86263.0,0.37535483]
[1742482751879,0.13568,86278.0,86277.0,0.243401]
[1742482752367,0.00314634,86278.0,86277.0,0.243401]
[1742482752542,0.0001693,86292.0,86291.0,0.231773]
[1742482752909,0.13899564,86292.0,86291.0,0.231773]
[1742482753801,0.13899564,86292.0,86290.0,0.231774]
[1742482754013,0.00331564,86292.0,86290.0,0.231774]
[1742482754204,0.231799,86282.0,86278.0,0.231806]
[1742482754410,0.00315164,86281.0,86272.0,0.011591]
[1742482754639,0.011588,86290.0,86272.0,0.011591]
[1742482754640,0.011588,86296.0,86290.0,0.231776]
[1742482754851,0.23201455,86292.0,86288.0,0.231779]
[1742482754978,0.00024155,86292.0,86290.0,0.231776]
[1742482755382,0.00024155,86292.0,86291.0,0.243361]
[1742482755584,0.13592155,86292.0,86291.0,0.231773]
[1742482755926,0.13906684,86292.0,86291.0,0.231773]
[1742482756116,0.13906684,86292.0,86289.0,0.231777]
[1742482756117,0.13906684,86292.0,86275.0,0.01159]
[1742482756289,0.13906684,86292.0,86291.0,0.231773]
[1742482756505,0.13906684,86292.0,86290.0,0.232775]
[1742482756695,0.011589,86287.0,86272.0,0.002]
[1742482757039,0.0031519,86286.0,86273.0,0.011591]
[1742482757243,0.0031519,86286.0,86285.0,0.231789]
[1742482757650,0.231775,86291.0,86285.0,0.231789]
[1742482757966,0.13568,86290.0,86289.0,0.231779]
[1742482759146,0.147268,86290.0,86283.0,0.231792]
[1742482759349,0.243367,86289.0,86285.0,0.231787]
[1742482759506,0.00314892,86289.0,86285.0,0.231787]
[1742482759708,0.13564,86288.0,86286.0,0.231786]
[1742482760112,0.011589,86282.0,86264.0,0.011592]
[1742482760327,0.13564,86288.0,86283.0,0.001]
[1742482760526,0.13564,86288.0,86287.0,0.231784]
[1742482760917,0.13564,86288.0,86286.0,0.232786]
[1742482761117,0.23201255,86292.0,86291.0,0.231773]
[1742482761118,0.00024155,86292.0,86291.0,0.231773]
[1742482761316,0.00024155,86292.0,86281.0,0.01159]
[1742482761317,0.01159,86277.0,86262.0,0.01170908]
[1742482761526,0.243438,86264.0,86254.0,0.0003388]
[1742482761750,0.379078,86264.0,86254.0,0.0003388]
[1742482762578,0.14718561,86264.0,86254.0,0.0003388]
[1742482762781,0.14718561,86264.0,86260.0,0.011592]
[1742482762782,0.13564,86264.0,86260.0,0.011592]
[1742482762994,0.13564,86264.0,86263.0,0.2321818]
[1742482763830,0.13564,86264.0,86263.0,0.2351818]
[1742482764032,0.13564,86264.0,86263.0,0.2361818]
[1742482764254,0.13564,86264.0,86263.0,0.2331818]
[1742482764431,0.13564,86264.0,86263.0,0.2321818]
[1742482764657,0.13564,86264.0,86263.0,0.2341818]
[1742482764864,0.15382923,86264.0,86263.0,0.2341818]
[1742482765035,0.15382923,86264.0,86263.0,0.2361818]
[1742482766027,0.15382923,86264.0,86263.0,0.2477738]
[1742482766458,0.45567054,86290.0,86263.0,0.2477738]
[1742482766459,0.13564,86274.0,86273.0,0.243413]
[1742482766608,0.280274,86291.0,86286.0,0.231785]
[1742482766818,0.011588,86289.0,86276.0,0.231814]
[1742482767023,0.15382461,86290.0,86286.0,0.231786]
[1742482767232,0.15382461,86290.0,86289.0,0.231779]
[1742482767655,0.15382461,86290.0,86267.0,0.3]
[1742482767656,0.16541261,86290.0,86267.0,0.3]
[1742482767859,0.011589,86283.0,86267.0,0.3]
[1742482768056,0.231789,86285.0,86281.0,0.231798]
[1742482768282,0.231793,86284.0,86281.0,0.231799]
[1742482768492,0.011589,86282.0,86269.0,0.011591]
[1742482768692,0.231793,86284.0,86269.0,0.011591]
[1742482768896,0.231793,86284.0,86277.0,0.23181]
[1742482769129,0.02977411,86285.0,86278.0,0.231807]
[1742482769336,0.011589,86284.0,86270.0,0.011591]
[1742482769641,0.231801,86281.0,86275.0,0.231814]
[1742482769844,0.01159,86275.0,86267.0,0.0003392]
[1742482770051,0.13564,86274.0,86273.0,0.231822]
[1742482770227,0.13564,86274.0,86272.0,0.231824]
[1742482770397,0.13564,86274.0,86273.0,0.231822]
[1742482770579,0.15382661,86274.0,86273.0,0.231822]
[1742482771326,0.15382661,86274.0,86273.0,0.232822]
[1742482772275,0.15382661,86274.0,86273.0,0.234822]
[1742482772573,0.15382661,86274.0,86273.0,0.233822]
[1742482772935,0.15382661,86274.0,86273.0,0.235822]
[1742482773476,0.15382661,86274.0,86273.0,0.247413]
[1742482775118,0.01818661,86274.0,86273.0,0.247413]
[1742482775321,0.15382661,86274.0,86273.0,0.247413]
[1742482779395,7.225e-05,86291.0,86290.0,0.243364]
[1742482780402,7.225e-05,86291.0,86290.0,0.231776]
[1742482780735,7.225e-05,86291.0,86290.0,0.243364]
[1742482781340,0.13571225,86291.0,86290.0,0.243364]
[1742482781549,0.13571225,86291.0,86290.0,0.247364]
[1742482782165,0.13571225,86291.0,86290.0,0.251364]
[1742482782365,7.225e-05,86291.0,86290.0,0.251364]
[1742482782598,0.13571225,86291.0,86290.0,0.251364]
[1742482782805,0.13571225,86291.0,86290.0,0.254364]
[1742482783723,7.225e-05,86291.0,86290.0,0.254364]
[1742482783930,0.23184525,86291.0,86290.0,0.011]
[1742482784156,7.225e-05,86291.0,86290.0,0.011]
[1742482784797,7.225e-05,86291.0,86290.0,0.242776]
[1742482785096,7.225e-05,86291.0,86290.0,0.254364]
[1742482785517,7.225e-05,86291.0,86290.0,0.247364]
[1742482785692,7.225e-05,86291.0,86290.0,0.248364]
[1742482786519,7.225e-05,86291.0,86290.0,0.243364]
[1742482786676,7.225e-05,86291.0,86290.0,0.245364]
[1742482786878,7.225e-05,86291.0,86290.0,0.249364]
[1742482787100,7.225e-05,86291.0,86290.0,0.243364]
[1742482787301,7.225e-05,86291.0,86290.0,0.36293903]
[1742482787464,7.225e-05,86291.0,86290.0,0.36793903]
[1742482787868,7.225e-05,86291.0,86290.0,0.36293903]
[1742482788118,7.225e-05,86291.0,86290.0,0.62793903]
[1742482788481,7.225e-05,86291.0,86290.0,0.63193903]
[1742482788806,7.225e-05,86291.0,86290.0,0.63393903]
[1742482789206,2.5e-07,86291.0,86290.0,0.65347988]
[1742482789417,2.5e-07,86291.0,86290.0,0.70097988]
[1742482789621,5.5e-07,86292.0,86291.0,0.243361]
[1742482789815,8.5e-07,86293.0,86292.0,0.63959985]
[1742482790001,8.5e-07,86293.0,86292.0,0.75917488]
[1742482791724,8.5e-07,86293.0,86292.0,0.76517488]
[1742482792332,0.1356,86322.0,86321.0,0.243277]
[1742482792529,0.13572049,86322.0,86321.0,0.243277]
[1742482793299,0.00012049,86322.0,86321.0,0.231693]
[1742482793774,0.00012049,86322.0,86321.0,0.245277]
[1742482794375,0.00012049,86322.0,86321.0,0.26855624]
[1742482794532,0.00012049,86322.0,86321.0,0.245277]
[1742482795130,0.00012049,86322.0,86321.0,0.37539983]
[1742482795328,0.00012049,86322.0,86321.0,0.37839983]
[1742482795648,0.00012049,86322.0,86321.0,0.67839983]
[1742482795873,0.00012049,86322.0,86321.0,0.69294068]
[1742482796096,4.9e-07,86322.0,86321.0,0.69294068]
[1742482796545,4.9e-07,86322.0,86321.0,0.68994068]
[1742482796819,4.9e-07,86322.0,86321.0,0.69394068]
[1742482797039,4.9e-07,86322.0,86321.0,0.67539983]
[1742482797196,4.9e-07,86322.0,86321.0,0.67139983]
[1742482797376,4.9e-07,86322.0,86321.0,0.67639983]
[1742482797913,4.9e-07,86322.0,86321.0,0.68594068]
[1742482798117,4.9e-07,86322.0,86321.0,1.10084068]
[1742482798465,4.9e-07,86322.0,86321.0,1.10684068]
[1742482798868,4.9e-07,86322.0,86321.0,1.11284068]
[1742482799355,4.9e-07,86322.0,86321.0,1.09829983]
[1742482800192,4.9e-07,86322.0,86321.0,0.9787248]
[1742482800397,4.9e-07,86322.0,86321.0,1.09829983]
[1742482800642,4.9e-07,86322.0,86321.0,0.68339983]
[1742482800801,4.9e-07,86322.0,86321.0,0.69794068]
[1742482801402,2.9e-07,86326.0,86325.0,0.543266]
[1742482801606,9.3e-07,86326.0,86325.0,0.67738188]
[1742482802016,9.3e-07,86326.0,86325.0,0.75628188]
[1742482802223,9.3e-07,86326.0,86325.0,0.74174103]
[1742482802609,9.3e-07,86326.0,86325.0,0.531682]
[1742482802757,9.3e-07,86326.0,86325.0,0.549266]
[1742482802960,9.3e-07,86326.0,86325.0,0.68338188]
[1742482803364,9.3e-07,86326.0,86325.0,0.76618188]
[1742482803567,0.83813393,86328.0,86327.0,0.24326]
[1742482803768,0.0001694,86342.0,86328.0,0.55779785]
[1742482803769,9.3e-07,86329.0,86328.0,0.55779785]
[1742482803969,9.3e-07,86329.0,86328.0,0.67737288]
[1742482805165,9.3e-07,86329.0,86328.0,0.66283203]
[1742482805364,9.3e-07,86329.0,86328.0,0.65724903]
[1742482805648,9.3e-07,86329.0,86328.0,0.66883203]
[1742482805791,9.3e-07,86329.0,86328.0,0.67737288]
[1742482806176,9.3e-07,86329.0,86328.0,0.68337288]
[1742482806379,9.3e-07,86329.0,86328.0,0.68937288]
[1742482807925,9.3e-07,86329.0,86328.0,0.81737288]
[1742482808291,9.3e-07,86329.0,86328.0,0.82237288]
[1742482808815,9.3e-07,86329.0,86328.0,0.81637288]
[1742482809020,9.3e-07,86329.0,86328.0,0.81037288]
[1742482809215,9.3e-07,86329.0,86328.0,0.81637288]
[1742482809440,9.3e-07,86329.0,86328.0,0.82237288]
[1742482809996,9.3e-07,86329.0,86328.0,0.81637288]
[1742482810425,9.3e-07,86329.0,86328.0,0.82237288]
[1742482810656,9.3e-07,86329.0,86328.0,0.81637288]
[1742482810860,9.3e-07,86329.0,86328.0,0.81037288]
[1742482811237,9.3e-07,86329.0,86328.0,0.84137288]
[1742482811642,0.0001694,86342.0,86341.0,0.62102]
[1742482811872,0.0001694,86342.0,86341.0,0.93917588]
[1742482812433,0.0001694,86342.0,86341.0,0.67733588]
[1742482812639,0.0001694,86342.0,86341.0,0.66279503]
[1742482813426,0.0001694,86342.0,86341.0,0.68333588]
[1742482813630,0.0001694,86342.0,86341.0,0.80423588]
[1742482813782,0.0001694,86342.0,86341.0,0.82775755]
[1742482813982,0.0001694,86342.0,86341.0,0.83375755]
[1742482814405,0.0001694,86342.0,86341.0,0.97519755]
[1742482814904,0.0001694,86342.0,86341.0,0.96919755]
[1742482815119,0.0001694,86342.0,86341.0,0.97519755]
[1742482815334,0.0001694,86342.0,86341.0,0.96919755]
[1742482815655,0.0001694,86342.0,86341.0,0.97519755]
[1742482815861,0.0001694,86342.0,86341.0,0.96919755]
[1742482816297,0.0001694,86342.0,86341.0,0.97519755]
[1742482816511,0.0001694,86342.0,86341.0,0.6983167]
[1742482816684,0.0001694,86342.0,86341.0,0.3867357]
[1742482816886,0.0001694,86342.0,86341.0,0.3983167]
[1742482817197,0.0001694,86342.0,86341.0,0.3867357]
[1742482817404,0.3128054,86342.0,86341.0,0.012]
[1742482817603,0.3718864,86342.0,86341.0,0.012]
[1742482817802,0.37527232,86342.0,86341.0,0.012]
[1742482818003,0.14363632,86342.0,86341.0,0.006]
[1742482818171,0.13205532,86342.0,86341.0,0.006]
[1742482818613,0.26749532,86342.0,86341.0,0.012]
[1742482818832,0.26749532,86342.0,86341.0,0.006]
[1742482819028,0.13899532,86342.0,86340.0,0.231642]
[1742482819228,0.13899532,86342.0,86341.0,0.002]
[1742482819481,0.1356094,86342.0,86341.0,0.002]
[1742482819664,0.1356094,86342.0,86332.0,0.01163232]
[1742482819857,0.15714051,86342.0,86341.0,0.001]
[1742482820173,0.15714051,86342.0,86341.0,0.003]
[1742482820610,0.15378083,86342.0,86341.0,0.003]
[1742482821003,0.16536183,86342.0,86341.0,0.003]
[1742482821130,0.16872151,86342.0,86341.0,0.003]
[1742482821330,0.15714051,86342.0,86341.0,0.001]
[1742482821769,0.52625751,86342.0,86341.0,0.001]
[1742482822109,0.52625751,86342.0,86332.0,0.002]
[1742482822110,0.243244,86333.0,86332.0,0.002]
[1742482822223,0.231656,86335.0,86325.0,0.000339]
[1742482822428,0.50034262,86342.0,86325.0,0.000339]
[1742482822429,0.2615094,86342.0,86325.0,0.000339]
[1742482822632,0.0001694,86342.0,86341.0,0.24522]
[1742482823056,0.0001694,86342.0,86341.0,0.24322]
[1742482823630,0.0001694,86342.0,86341.0,0.66279503]
[1742482824033,0.0001694,86342.0,86341.0,0.67150107]
[1742482824848,0.0001694,86342.0,86341.0,0.65121403]
[1742482825023,0.0001694,86342.0,86341.0,0.531639]
[1742482825631,0.0001694,86342.0,86341.0,0.54306168]
[1742482826227,0.0001694,86342.0,86341.0,0.54906168]
[1742482826445,0.0001694,86342.0,86341.0,0.55506168]
[1742482826675,0.0001694,86342.0,86341.0,0.56064268]
[1742482826880,0.0001694,86342.0,86341.0,0.67421771]
[1742482827219,0.0001694,86342.0,86341.0,0.67921771]
[1742482827465,0.0001694,86342.0,86341.0,0.236639]
[1742482827908,0.0001694,86342.0,86341.0,0.66791474]
[1742482828120,0.0001694,86342.0,86341.0,0.68549574]
[1742482828545,0.0001694,86342.0,86341.0,0.67449574]
[1742482828954,0.0001694,86342.0,86341.0,0.68649574]
[1742482829184,0.0001694,86342.0,86341.0,0.68049574]
[1742482829390,0.0001694,86342.0,86341.0,0.73863659]
[1742482829603,6e-07,86343.0,86342.0,0.32612185]
[1742482829810,6e-07,86343.0,86342.0,0.44569688]
[1742482830010,6e-07,86351.0,86350.0,0.243195]
[1742482830267,9e-07,86359.0,86358.0,0.02611985]
[1742482830481,9e-07,86359.0,86358.0,0.44801003]
[1742482830697,0.00012554,86359.0,86358.0,0.44569488]
[1742482831226,0.00012554,86359.0,86358.0,0.43115403]
[1742482831655,0.00012554,86359.0,86358.0,0.11957503]
[1742482831857,0.00012554,86359.0,86358.0,0.13115403]
[1742482832624,0.00012554,86359.0,86358.0,0.13946961]
[1742482833027,0.00012554,86359.0,86358.0,0.13715403]
[1742482833430,0.00012554,86359.0,86358.0,0.11957503]
[1742482833689,0.00012554,86359.0,86358.0,0.12557503]
[1742482833907,0.00012554,86359.0,86358.0,0.006]
[1742482834117,0.00012554,86359.0,86358.0,0.12557503]
[1742482834315,0.00012554,86359.0,86358.0,0.13715403]
[1742482834599,0.0182923,86359.0,86358.0,0.4454696]
[1742482834819,0.0182923,86359.0,86358.0,0.44315403]
[1742482835179,0.0182923,86359.0,86358.0,0.43115403]
[1742482835345,0.0182923,86359.0,86358.0,0.43715403]
[1742482835552,0.0182923,86359.0,86358.0,0.44315403]
[1742482835770,0.0182923,86359.0,86358.0,0.43715403]
[1742482835988,0.0182923,86359.0,86356.0,0.231599]
[1742482836188,0.0182923,86359.0,86358.0,0.006]
[1742482836431,0.1536923,86359.0,86358.0,0.006]
[1742482836607,0.157106,86359.0,86358.0,0.006]
[1742482836810,0.157106,86359.0,86358.0,0.012]
[1742482837012,0.49376617,86359.0,86358.0,0.006]
[1742482837414,0.011583,86330.0,86325.0,0.000339]
[1742482837656,0.1354,86330.0,86325.0,0.000339]
[1742482837857,0.13879871,86330.0,86325.0,0.000339]
[1742482838369,0.15697223,86330.0,86325.0,0.000339]
[1742482838963,0.15697223,86330.0,86329.0,0.005339]
[1742482838964,0.16855523,86330.0,86329.0,0.005339]
[1742482840001,0.48028593,86330.0,86329.0,0.005339]
[1742482840241,0.34488593,86330.0,86329.0,0.005339]
[1742482840452,0.011584,86321.0,86320.0,0.2316]
[1742482840658,0.243359,86292.0,86291.0,0.10077461]
[1742482840863,0.243359,86292.0,86291.0,0.10119025]
[1742482840864,0.378759,86292.0,86291.0,0.10119025]
[1742482841279,0.38205,86292.0,86291.0,0.10119025]
[1742482841692,0.38205,86292.0,86254.0,0.0003388]
[1742482841693,0.243426,86268.0,86254.0,0.0003388]
[1742482841896,0.243426,86268.0,86267.0,0.00045969]
[1742482841897,0.367235,86268.0,86267.0,0.00045969]
[1742482842143,0.38208996,86268.0,86267.0,0.00045969]
[1742482842495,0.24668996,86268.0,86267.0,0.00045969]
[1742482842695,0.38208996,86268.0,86267.0,0.00045969]
[1742482843070,0.38208996,86268.0,86267.0,0.00445969]
[1742482843286,0.52188766,86268.0,86267.0,0.00445969]
[1742482843491,0.52188766,86268.0,86267.0,0.00045969]
[1742482843687,0.54007608,86268.0,86267.0,0.00345969]
[1742482843889,0.85961693,86268.0,86267.0,0.00345969]
[1742482844095,0.231866,86257.0,86254.0,0.0003388]
[1742482844319,0.243463,86255.0,86254.0,0.00041105]
[1742482844902,0.24656295,86255.0,86254.0,0.00041105]
[1742482845098,0.26475423,86255.0,86254.0,0.00041105]
[1742482845308,0.15673123,86255.0,86254.0,0.00041105]
[1742482846772,0.16832423,86255.0,86254.0,0.00041105]
[1742482846982,0.16832423,86255.0,86254.0,0.00241105]
[1742482847628,0.21582423,86255.0,86254.0,0.00241105]
[1742482848261,0.21582423,86255.0,86254.0,0.00041105]
[1742482848865,0.21582423,86255.0,86254.0,0.00441105]
[1742482849081,0.21582423,86255.0,86254.0,0.00641105]
[1742482849273,0.59252423,86255.0,86254.0,0.00041105]
[1742482849720,0.60706508,86255.0,86254.0,0.00341105]
[1742482849928,0.61206508,86255.0,86254.0,0.00341105]
[1742482850369,0.61206508,86255.0,86254.0,0.00241105]
[1742482850571,0.59252423,86255.0,86254.0,0.00041105]
[1742482850813,0.57433295,86255.0,86254.0,0.00041105]
[1742482851632,0.5938738,86255.0,86254.0,5e-08]
[1742482851847,0.243497,86243.0,86242.0,0.000339]
[1742482852200,0.24647622,86243.0,86242.0,0.00038057]
[1742482853008,0.26101707,86243.0,86242.0,0.00038057]
[1742482853210,0.56301707,86243.0,86242.0,0.00038057]
[1742482853434,0.69853707,86243.0,86242.0,0.00038057]
[1742482853646,0.005,86239.0,86238.0,5.7e-07]
[1742482853825,0.56304885,86239.0,86238.0,4.213e-05]
[1742482854039,0.56601255,86239.0,86238.0,4.213e-05]
[1742482854267,0.543556,86222.0,86205.0,0.000339]
[1742482854455,1.32439422,86222.0,86221.0,0.00141641]
[1742482854690,1.32735769,86222.0,86221.0,0.00141641]
[1742482854891,1.02735769,86222.0,86221.0,0.00141641]
[1742482855140,1.0455576,86222.0,86221.0,0.00141641]
[1742482855592,0.243565,86219.0,86205.0,0.000339]
[1742482855795,0.243602,86206.0,86205.0,0.000339]
[1742482855999,0.39171654,86206.0,86205.0,0.000339]
[1742482856197,0.40611735,86206.0,86205.0,0.00046384]
[1742482856404,0.4206582,86206.0,86205.0,0.00046384]
[1742482856602,0.43886133,86206.0,86205.0,0.00046384]
[1742482857034,0.05614085,86204.0,86203.0,8.4e-07]
[1742482857252,0.61237885,86193.0,86192.0,0.000339]
[1742482857454,0.62043804,86193.0,86192.0,0.000339]
[1742482857857,0.62331653,86193.0,86192.0,0.000339]
[1742482858068,0.64152308,86193.0,86192.0,0.000339]
[1742482858474,0.62698223,86193.0,86192.0,0.000339]
[1742482858676,0.76258223,86193.0,86192.0,0.000339]
[1742482858889,0.78212308,86193.0,86192.0,0.000339]
[1742482859091,0.005,86192.0,86191.0,1e-06]
[1742482859237,0.62735983,86192.0,86191.0,1e-06]
[1742482859445,0.4305723,86192.0,86191.0,1e-06]
[1742482859644,0.7716003,86192.0,86191.0,1e-06]
[1742482860227,0.7966003,86192.0,86191.0,1e-06]
[1742482860441,0.7966003,86192.0,86134.0,0.0003392]
[1742482860442,0.243709,86168.0,86134.0,0.0003392]
[1742482860651,1.28547426,86168.0,86167.0,8e-07]
[1742482860885,1.24868235,86168.0,86167.0,0.00012567]
[1742482861314,1.2632232,86168.0,86167.0,0.00012567]